bitfinex-derivatives/quotes_ETHF0:USTF0_20250620
["timestamp","ask_amount","ask_price","bid_price","bid_amount"]
[1750410068730,0.78287,2554.4,2554.3,3.9907]
[1750410069029,0.78287,2554.4,2554.3,3.2078]
[1750410069237,0.78287,2554.4,2554.3,3.9907]
[1750410069537,2.15727,2554.4,2554.3,3.9907]
[1750410069733,1.3744,2554.4,2554.3,3.9907]
[1750410070035,2.15727,2554.4,2554.3,3.9907]
[1750410070433,1.3744,2554.4,2554.3,3.9907]
[1750410070633,6.9828,2554.5,2554.4,0.78287]
[1750410071426,7.76564,2554.5,2554.4,0.78287]
[1750410072939,6.9828,2554.5,2554.4,0.78287]
[1750410073335,7.76564,2554.5,2554.4,0.78287]
[1750410073640,0.78287,2554.4,2554.3,3.2078]
[1750410073936,0.78296,2554.2,2554.1,0.78293]
[1750410074440,0.78293,2554.3,2554.2,0.78291]
[1750410074739,2.05193,2554.3,2554.2,0.78291]
[1750410075040,1.269,2554.3,2554.2,0.78291]
[1750410075441,0.7829,2554.4,2554.3,0.7829]
[1750410075940,2.0519,2554.4,2554.3,0.7829]
[1750410076439,1.269,2554.4,2554.3,0.7829]
[1750410076642,25.57767,2554.5,2554.4,0.78287]
[1750410076842,31.90267,2554.5,2554.4,0.78287]
[1750410079141,6.9838,2554.5,2554.4,0.78287]
[1750410079437,0.6662,2554.7,2554.6,0.78281]
[1750410079642,3.99055,2554.8,2554.7,0.78278]
[1750410079835,3.2078,2554.8,2554.7,0.78278]
[1750410080333,6.314,2554.9,2554.8,0.78275]
[1750410080736,1.3163,2555.0,2554.9,0.78272]
[1750410080939,6.314,2555.1,2555.0,0.78269]
[1750410081542,0.78264,2555.2,2555.1,0.78266]
[1750410082345,6.9522,2555.3,2554.9,3.06602474]
[1750410082346,7.7348,2555.3,2555.2,0.78263]
[1750410082933,9.0019,2555.3,2555.2,0.78263]
[1750410083135,0.78266,2555.2,2555.1,0.78264]
[1750410083335,2.04976,2555.2,2555.1,0.78264]
[1750410083533,0.7827,2555.1,2555.0,0.78267]
[1750410083745,2.0498,2555.1,2555.0,0.78267]
[1750410085645,0.78276,2554.9,2554.8,0.78272]
[1750410086042,0.78278,2554.7,2554.6,3.9906]
[1750410086341,0.78284,2554.5,2554.4,0.78285]
[1750410086548,0.7829,2554.4,2554.3,0.78288]
[1750410086843,0.7829,2554.3,2554.2,3.9907]
[1750410087047,1.4592,2554.3,2554.2,3.9907]
[1750410087349,2.7876,2554.3,2554.2,3.9907]
[1750410089946,31.1153,2554.3,2554.2,7.05672474]
[1750410091641,7.09681,2554.7,2554.5,0.78282]
[1750410091945,31.22281,2554.7,2554.6,0.78281]
[1750410092144,31.90151,2554.7,2554.6,0.78281]
[1750410092346,31.1187,2554.7,2554.6,0.78281]
[1750410093449,31.90148,2554.7,2554.6,0.78281]
[1750410095344,6.9927,2554.7,2554.6,0.78281]
[1750410095545,31.1167,2554.7,2554.6,0.78281]
[1750410095743,39.18272474,2554.7,2554.3,3.2078]
[1750410095948,0.78296,2554.2,2554.1,0.78295]
[1750410096151,31.21996,2554.2,2554.1,0.78295]
[1750410096751,0.78299,2554.1,2554.0,0.78297]
[1750410096946,1.42809,2554.1,2554.0,0.78297]
[1750410097153,0.6451,2554.1,2554.0,0.78297]
[1750410098152,6.314,2554.2,2554.1,0.78297]
[1750410098353,30.437,2554.2,2554.1,0.78297]
[1750410098851,0.78291,2554.3,2554.2,0.78293]
[1750410099052,30.436,2554.3,2554.2,0.78293]
[1750410099650,31.2189,2554.3,2554.2,0.78293]
[1750410100951,1.3055,2554.4,2554.3,0.7829]
[1750410101154,6.314,2554.6,2554.5,0.78284]
[1750410101455,0.78282,2554.6,2554.5,0.78284]
[1750410101656,31.21882,2554.6,2554.5,0.78284]
[1750410102154,0.78287,2554.4,2554.3,3.2078]
[1750410102451,0.78306,2553.8,2553.7,3.2078]
[1750410102655,31.21906,2553.8,2553.7,3.2078]
[1750410103347,1.2586,2553.9,2553.8,0.78306]
[1750410103550,3.2078,2554.1,2553.9,0.78302]
[1750410103551,0.78302,2554.0,2553.9,0.78302]
[1750410103752,0.78305,2553.9,2553.8,0.78304]
[1750410105058,0.78306,2553.8,2553.7,4.63477]
[1750410105253,24.90506,2553.8,2553.7,3.2078]
[1750410105952,26.18916,2553.8,2553.7,3.2078]
[1750410107847,0.7833,2553.1,2553.0,0.78328]
[1750410108849,0.78327,2553.1,2553.0,0.78328]
[1750410109561,2.80407,2553.1,2553.0,0.78328]
[1750410112463,2.0208,2553.1,2552.6,1.95856]
[1750410112654,24.91133,2553.0,2552.9,0.78331]
[1750410113460,24.128,2553.0,2552.9,0.78331]
[1750410113659,27.3348,2553.2,2553.1,0.78327]
[1750410115961,24.127,2553.2,2553.1,0.78327]
[1750410116162,6.976,2553.3,2553.2,0.78324]
[1750410116462,31.105,2553.3,2553.2,0.78324]
[1750410116964,3.8972,2553.5,2553.4,0.78318]
[1750410117153,3.8642,2553.8,2553.7,0.78309]
[1750410117354,3.2078,2553.8,2553.7,0.78309]
[1750410118456,3.99086,2553.8,2553.7,0.78309]
[1750410118656,0.78309,2553.7,2553.6,1.46239]
[1750410118857,29.48598,2553.8,2553.7,0.78309]
[1750410119258,28.7029,2553.8,2553.7,0.78309]
[1750410120056,3.2078,2553.8,2553.7,0.78309]
[1750410120961,3.2078,2553.8,2553.7,2.15789]
[1750410121361,9.5148,2554.2,2554.1,0.78297]
[1750410121655,3.2078,2554.2,2554.1,0.78297]
[1750410125072,8.2078,2554.2,2553.1,3.11891686]
[1750410125265,0.78314,2553.6,2553.3,0.78321]
[1750410125467,2.6952,2553.5,2553.4,0.78318]
[1750410125770,25.5471,2553.5,2553.4,0.78318]
[1750410125968,1.3331,2553.5,2553.4,0.78318]
[1750410128563,1.3331,2553.5,2552.9,16.60224116]
[1750410128564,1.3331,2553.5,2552.8,5.07728686]
[1750410128773,4.4918,2553.4,2553.2,0.78322]
[1750410129071,24.199,2553.3,2553.2,0.78322]
[1750410129277,25.483,2553.3,2553.2,0.78322]
[1750410130271,3.2078,2553.4,2553.3,0.78321]
[1750410130471,27.4188,2553.4,2553.3,0.78321]
[1750410130673,28.7028,2553.4,2553.3,0.78321]
[1750410132679,4.4918,2553.4,2553.3,0.78321]
[1750410132866,27.4018,2553.4,2553.3,0.78321]
[1750410133072,27.3998,2553.4,2553.3,0.78321]
[1750410134979,1.3331,2553.5,2553.4,0.78318]
[1750410135181,25.5271,2553.5,2553.4,0.78318]
[1750410135380,26.31026,2553.5,2553.2,0.78321]
[1750410135576,1.3711,2553.4,2553.3,0.78321]
[1750410136476,25.5501,2553.4,2553.3,0.78321]
[1750410136677,1.3331,2553.5,2553.4,0.78318]
[1750410136976,25.5281,2553.5,2553.4,0.78318]
[1750410137372,25.5281,2553.5,2552.7,3.11891686]
[1750410137579,4.558,2553.4,2553.3,0.78321]
[1750410137777,4.558,2553.4,2553.2,0.78322]
[1750410138175,4.558,2553.4,2553.3,0.78321]
[1750410138483,5.34118,2553.4,2553.2,0.78322]
[1750410138683,4.558,2553.4,2553.3,0.78321]
[1750410142087,28.738,2553.4,2553.3,0.78321]
[1750410143487,4.558,2553.4,2553.3,0.78321]
[1750410143683,1.3331,2553.5,2553.4,0.78318]
[1750410143990,25.5031,2553.5,2553.4,0.78318]
[1750410144282,2.7023,2553.5,2553.4,0.78318]
[1750410147585,2.7023,2553.5,2552.8,7.03561686]
[1750410147790,2.7023,2553.5,2553.4,0.78318]
[1750410147980,26.8523,2553.5,2553.4,0.78318]
[1750410148381,1.3331,2553.5,2553.4,0.78318]
[1750410149285,2.5808,2553.5,2553.4,0.78318]
[1750410151983,1.3331,2553.5,2553.4,0.78318]
[1750410152895,2.6263,2553.5,2553.4,0.78318]
[1750410159290,3.2078,2553.7,2553.6,0.78312]
[1750410159494,3.2078,2553.7,2553.6,3.85085459]
[1750410160086,3.2078,2553.7,2553.6,5.80005459]
[1750410160290,3.8884,2554.0,2553.9,0.78303]
[1750410160591,4.22047725,2554.0,2553.9,0.78303]
[1750410161191,4.22083604,2554.0,2553.9,0.78303]
[1750410161596,3.2078,2554.0,2553.9,0.78303]
[1750410162593,4.5135,2554.0,2553.9,0.78303]
[1750410164896,4.5135,2554.0,2553.6,1.9578]
[1750410165096,3.2078,2553.7,2553.6,0.78312]
[1750410165402,24.7704,2553.9,2553.8,0.78306]
[1750410165603,27.9782,2553.9,2553.8,0.78306]
[1750410166801,3.2078,2553.9,2553.8,0.78306]
[1750410167997,0.6812,2554.1,2554.0,0.783]
[1750410170002,1.46417,2554.1,2553.9,0.78301]
[1750410170203,0.783,2554.0,2553.8,0.78305]
[1750410170401,27.3368,2553.9,2553.8,0.78305]
[1750410171299,33.6718,2553.9,2553.8,0.78305]
[1750410172502,3.2078,2553.9,2553.8,0.78305]
[1750410172706,33.6718,2553.9,2553.8,0.78305]
[1750410174103,3.2078,2553.9,2553.8,0.78305]
[1750410174411,33.6718,2553.9,2553.8,0.78305]
[1750410178211,34.45484,2553.9,2553.4,1.95789]
[1750410178410,0.6686,2553.8,2553.7,0.78308]
[1750410178612,1.45166,2553.8,2553.4,1.95789]
[1750410178912,24.127,2553.7,2553.6,0.7831]
[1750410180211,0.6686,2553.8,2553.7,0.78309]
[1750410180416,24.7966,2553.8,2553.7,0.78309]
[1750410181217,0.78314,2553.6,2553.4,0.78316]
[1750410181410,27.3348,2553.6,2553.5,0.78315]
[1750410181810,28.11792,2553.6,2553.5,0.78315]
[1750410182212,0.78315,2553.5,2553.4,0.78317]
[1750410182508,0.78323,2553.3,2553.1,0.78326]
[1750410182722,24.8037,2553.2,2553.1,0.78326]
[1750410183208,3.2078,2553.3,2553.2,0.78325]
[1750410183413,27.3348,2553.3,2553.2,3.85143088]
[1750410183613,3.2078,2553.3,2553.2,3.85143088]
[1750410184812,30.434,2553.6,2553.5,0.78315]
[1750410185215,6.307,2553.6,2553.5,0.78315]
[1750410185416,3.2078,2553.7,2553.6,0.78312]
[1750410185608,3.2078,2553.7,2553.6,3.85130088]
[1750410186015,24.127,2553.9,2553.6,5.02600088]
[1750410186216,24.127,2553.9,2553.8,0.78306]
[1750410186609,24.127,2553.9,2553.8,1.41786]
[1750410186915,33.6418,2554.0,2553.9,0.78303]
[1750410187714,34.42482,2554.0,2553.8,0.78305]
[1750410187918,35.73932,2554.0,2553.8,0.78305]
[1750410188111,0.78305,2553.9,2553.7,0.78308]
[1750410188312,2.09755,2553.9,2553.7,0.78308]
[1750410188821,2.09755,2553.9,2553.6,0.78311]
[1750410189119,1.3145,2553.9,2553.7,0.78309]
[1750410189319,2.09754,2553.9,2553.7,0.78309]
[1750410190226,1.3145,2553.9,2553.7,0.78309]
[1750410190419,1.3145,2553.9,2553.8,0.78306]
[1750410190620,2.09753,2553.9,2553.7,0.78307]
[1750410190822,24.126,2553.8,2553.7,0.78307]
[1750410191023,9.5148,2554.0,2553.9,0.78303]
[1750410191322,27.3338,2554.0,2553.9,0.78303]
[1750410191813,27.3338,2554.0,2553.9,0.78304]
[1750410192019,28.11682,2554.0,2553.8,0.78305]
[1750410192214,28.11682,2554.0,2553.6,1.95782]
[1750410192418,28.11682,2554.0,2553.9,0.78304]
[1750410192618,28.11682,2554.0,2553.8,0.78304]
[1750410193320,28.11682,2554.0,2553.9,0.78304]
[1750410194022,24.90902,2554.0,2553.8,0.78304]
[1750410194219,28.11682,2554.0,2553.8,0.78304]
[1750410195523,0.78304,2553.9,2553.8,0.78304]
[1750410195725,1.44314,2553.9,2553.8,0.78304]
[1750410196724,3.2078,2554.0,2553.9,0.78304]
[1750410196920,27.3308,2554.0,2553.9,0.78304]
[1750410199527,28.11381,2554.0,2553.9,0.78304]
[1750410199728,27.3308,2554.0,2553.9,0.78304]
[1750410200328,28.11381,2554.0,2553.9,0.78304]
[1750410202329,3.99081,2554.0,2553.9,0.78304]
[1750410202626,27.3288,2554.0,2553.9,0.78304]
[1750410202923,3.2078,2554.0,2553.9,0.78304]
[1750410203924,3.2078,2554.0,2553.9,3.48504]
[1750410208831,0.6391,2554.4,2554.3,0.78292]
[1750410215036,0.78299,2554.1,2554.0,0.78299]
[1750410215232,3.84870999,2554.1,2554.0,0.78299]
[1750410215430,3.06571999,2554.1,2553.7,3.11891686]
[1750410215637,3.51692,2554.0,2553.9,0.78301]
[1750410216435,0.78305,2553.9,2553.8,0.78304]
[1750410216638,1.2812,2553.9,2553.8,0.78304]
[1750410218440,1.368,2554.0,2553.9,0.78304]
[1750410223838,2.74435364,3465.2,2553.9,0.78304]
[1750410223839,6.3,2554.8,2554.1,1.95745]
[1750410224045,8.9245,2554.8,2554.7,0.78279]
[1750410224846,9.70727,2554.8,2554.7,0.78279]
[1750410225039,0.7828,2554.7,2554.5,0.78283]
[1750410225235,1.321,2554.6,2554.5,0.78283]
[1750410229160,1.3035,2554.8,2554.7,0.7828]
[1750410230350,1.3414,2555.0,2554.9,0.78273]
[1750410230660,0.6562,2555.0,2554.9,0.78273]
[1750410230857,1.9976,2555.0,2554.9,0.78273]
[1750410232259,0.6562,2555.0,2554.9,0.78273]
[1750410232459,0.6701,2555.2,2555.1,0.78267]
[1750410232766,0.6701,2555.2,2555.1,3.84838999]
[1750410234051,0.69,2555.3,2555.2,0.78264]
[1750410234257,3.2078,2555.4,2555.3,0.78261]
[1750410234557,3.2078,2555.4,2555.3,3.84832999]
[1750410234757,0.6556,2555.5,2555.4,0.78258]
[1750410235165,1.9824,2555.5,2555.4,0.78258]
[1750410236264,0.6556,2555.5,2555.4,0.78258]
[1750410240465,0.6556,2555.5,2555.4,3.84829999]
[1750410240768,3.2078,2556.2,2556.1,0.78236]
[1750410240968,5.8731,2556.2,2556.1,0.78236]
[1750410241466,3.06571999,2556.8,2556.5,0.78223]
[1750410241661,0.78225,2556.5,2556.4,0.78225]
[1750410241975,0.78243,2555.9,2555.8,3.99024]
[1750410242172,3.06571999,2555.9,2555.8,3.99024]
[1750410242564,5.05961999,2555.9,2555.8,3.99024]
[1750410242764,5.73101999,2555.9,2555.8,3.99024]
[1750410243771,6.51343999,2555.9,2555.8,3.99024]
[1750410244072,5.73101999,2555.9,2555.8,3.99024]
[1750410244871,2.6653,2555.9,2555.8,3.99024]
[1750410245071,14.03545155,2555.9,2555.5,3.2078]
[1750410245371,2.16438,2555.8,2555.7,0.78247]
[1750410245571,0.78251,2555.7,2555.6,0.7825]
[1750410245759,1.3819,2555.7,2555.6,0.7825]
[1750410245964,1.3819,2555.7,2555.2,3.2078]
[1750410246163,30.376,2555.6,2555.2,3.2078]
[1750410246362,0.78261,2555.3,2555.2,3.2078]
[1750410246568,11.37015155,2555.3,2554.9,3.2078]
[1750410246768,0.78268,2555.1,2555.0,0.78268]
[1750410247163,2.03818,2555.1,2555.0,0.78268]
[1750410247568,0.7827,2555.0,2554.9,3.99051]
[1750410247768,2.0382,2555.0,2554.9,3.99051]
[1750410248169,2.0382,2555.0,2554.9,3.2078]
[1750410248579,0.78281,2554.7,2554.5,3.2078]
[1750410248780,24.086,2554.8,2554.7,0.78277]
[1750410248983,0.7828,2554.7,2554.6,0.7828]
[1750410249274,0.78282,2554.6,2554.5,3.99064]
[1750410249477,1.40622,2554.6,2554.5,3.2078]
[1750410249666,12.77637155,2554.6,2554.5,3.2078]
[1750410249865,6.40622,2554.6,2554.5,3.2078]
[1750410250075,0.78289,2554.4,2554.3,0.78291]
[1750410250271,31.15991,2554.4,2554.3,0.78292]
[1750410250576,30.377,2554.4,2554.3,0.78292]
[1750410251276,31.15989,2554.4,2554.3,0.78292]
[1750410251475,0.78294,2554.3,2554.2,0.78292]
[1750410251972,0.78295,2554.2,2554.1,3.99073]
[1750410252271,0.78295,2554.2,2554.1,3.2078]
[1750410252475,0.78304,2553.9,2553.8,3.2078]
[1750410252678,31.16004,2553.9,2553.8,3.2078]
[1750410253266,31.16004,2553.9,2553.8,3.99087]
[1750410253472,31.16004,2553.9,2553.8,3.2078]
[1750410253969,30.377,2553.9,2553.8,3.99087]
[1750410258677,31.16004,2553.9,2553.8,3.99087]
[1750410258879,30.377,2553.9,2553.8,3.99087]
[1750410259078,31.16004,2553.9,2553.8,3.99087]
[1750410259386,0.78312,2553.7,2553.5,3.2078]
[1750410259677,30.46315155,2553.6,2553.5,3.99094]
[1750410259880,0.6916,2553.6,2553.5,3.99094]
[1750410260071,31.0746,2553.6,2553.5,3.99094]
[1750410262282,24.094,2553.7,2553.5,3.2078]
[1750410262582,24.094,2553.7,2553.6,0.78313]
[1750410263873,24.8771,2553.7,2553.6,0.78313]
[1750410264482,24.094,2553.7,2553.6,0.78313]
[1750410265882,24.8771,2553.7,2553.6,0.78313]
[1750410266275,24.094,2553.7,2553.6,0.78313]
[1750410266675,24.8771,2553.7,2553.6,0.78313]
[1750410267080,0.78313,2553.6,2553.5,3.2078]
[1750410267384,0.78319,2553.5,2553.4,0.78316]
[1750410267687,0.78322,2553.4,2553.3,0.78321]
[1750410267882,11.43448273,2553.4,2553.3,0.78321]
[1750410269282,0.78322,2553.3,2553.2,3.99104]
[1750410269585,26.84132,2553.3,2553.2,3.99104]
[1750410269990,26.84132,2553.3,2553.2,3.2078]
[1750410272785,26.84132,2553.3,2552.4,2.60138]
[1750410272786,29.2659,2553.3,2552.4,2.60138]
[1750410272981,0.78338,2552.8,2552.5,0.6874]
[1750410273288,24.8794,2552.7,2552.6,0.78341]
[1750410273477,24.096,2552.7,2552.5,0.6874]
[1750410273684,24.096,2552.7,2552.6,0.78343]
[1750410274892,24.096,2552.7,2552.6,2.12233]
[1750410275977,6.288,2552.8,2552.7,0.7834]
[1750410276181,30.385,2552.8,2552.7,0.7834]
[1750410277383,24.099,2552.9,2552.8,0.78337]
[1750410277587,24.099,2552.9,2552.8,2.05457]
[1750410278791,24.099,2552.9,2552.8,0.78337]
[1750410280391,0.78327,2553.1,2553.0,0.7833]
[1750410280592,0.78327,2553.1,2552.7,1.95847]
[1750410280593,31.17227,2553.1,2552.9,0.78331]
[1750410280894,31.17227,2553.1,2553.0,0.7833]
[1750410281389,31.17227,2553.1,2552.9,0.78331]
[1750410281590,30.389,2553.1,2553.0,0.7833]
[1750410281785,31.17229,2553.1,2552.9,0.78331]
[1750410281991,30.389,2553.1,2552.9,0.78331]
[1750410282187,30.389,2553.1,2552.7,1.3337]
[1750410282188,0.78344,2552.6,2552.4,0.6427]
[1750410282492,31.17142,2552.7,2552.5,0.78345]
[1750410282794,31.17142,2552.7,2552.4,0.6427]
[1750410282990,30.388,2552.7,2552.2,5.16667]
[1750410283290,0.78344,2552.6,2552.5,0.78346]
[1750410283490,33.08602,2552.7,2552.5,0.78346]
[1750410283695,32.3026,2552.7,2552.6,0.78343]
[1750410284284,31.0247,2552.7,2552.6,0.78343]
[1750410284492,6.9267,2552.7,2552.6,0.78343]
[1750410284692,6.29,2552.7,2552.6,0.78343]
[1750410285194,6.29,2552.7,2552.6,2.79523]
[1750410285591,0.78328,2553.1,2552.9,0.78331]
[1750410285795,30.389,2553.0,2552.9,0.78331]
[1750410285996,31.17231,2553.0,2552.8,0.78334]
[1750410286197,31.17231,2553.0,2552.9,0.78333]
[1750410286598,30.389,2553.0,2552.9,0.78333]
[1750410287792,6.29,2553.1,2553.0,0.7833]
[1750410287994,30.389,2553.1,2553.0,0.7833]
[1750410288400,6.29,2553.1,2553.0,0.7833]
[1750410288602,4.5111,2553.3,2553.0,0.7833]
[1750410288603,4.5111,2553.3,2553.2,0.78324]
[1750410288802,27.3058,2553.6,2553.5,0.78313]
[1750410289300,27.3058,2553.6,2553.5,0.78315]
[1750410289900,0.78317,2553.5,2553.3,0.7832]
[1750410290102,4.501,2553.6,2553.1,4.00648]
[1750410290304,4.501,2553.6,2553.5,0.78315]
[1750410290507,28.599,2553.6,2553.5,0.78315]
[1750410290699,27.3058,2553.6,2553.5,0.78315]
[1750410291294,6.9611,2553.7,2553.6,0.78312]
[1750410291506,69.21,2553.8,2553.7,0.78309]
[1750410291907,69.99306,2553.8,2553.6,0.7831]
[1750410292307,0.78309,2553.7,2553.5,0.78313]
[1750410292701,0.78309,2553.7,2553.6,0.78312]
[1750410292901,69.21,2553.8,2553.6,0.78312]
[1750410293103,69.21,2553.8,2553.3,6.79411553]
[1750410293104,0.7831,2553.7,2553.5,0.78313]
[1750410293311,0.7831,2553.7,2553.6,0.78312]
[1750410293906,0.7831,2553.7,2553.5,0.78313]
[1750410294210,0.78311,2553.7,2553.3,6.79411553]
[1750410294714,70.5109,2553.8,2553.3,4.83608553]
[1750410294914,72.46859,2553.8,2553.4,0.78316]
[1750410295115,0.78314,2553.6,2553.4,0.78316]
[1750410295317,24.094,2553.6,2553.4,0.78316]
[1750410295508,0.78315,2553.5,2553.4,0.78316]
[1750410295908,0.78318,2553.4,2553.3,3.99099]
[1750410296109,0.6713,2553.5,2553.3,3.99099]
[1750410296508,0.78318,2553.4,2553.3,3.99099]
[1750410296910,0.6713,2553.5,2553.3,3.99099]
[1750410297214,0.78318,2553.4,2553.3,3.99099]
[1750410297518,0.78318,2553.4,2553.3,3.2078]
[1750410297706,33.16488,2553.4,2553.3,3.2078]
[1750410300318,0.7833,2553.0,2552.9,3.2078]
[1750410300817,0.78339,2552.8,2552.5,3.2078]
[1750410301022,24.092,2552.7,2552.6,0.7834]
[1750410301619,1.43226,2552.9,2552.7,0.78338]
[1750410301918,30.381,2552.8,2552.7,0.78338]
[1750410302923,30.381,2552.8,2552.6,0.78341]
[1750410303220,2.77872,2552.7,2552.5,3.99124]
[1750410303425,0.78343,2552.6,2552.5,3.99124]
[1750410303720,1.9953,2552.7,2552.6,0.78343]
[1750410303919,1.9953,2552.7,2552.5,3.99123]
[1750410303920,26.8697,2552.7,2552.5,3.99123]
[1750410304914,26.86972,2552.7,2552.5,3.99125]
[1750410305313,26.86972,2552.7,2552.5,3.2078]
[1750410305515,26.0863,2552.7,2552.6,0.78343]
[1750410305917,24.7392,2552.7,2552.6,0.78343]
[1750410306119,3.2078,2553.1,2552.5,5.16643]
[1750410306322,0.78334,2552.9,2552.6,0.6582]
[1750410306538,26.15353,2553.0,2552.8,0.78337]
[1750410306719,0.78333,2552.9,2552.8,0.78337]
[1750410307025,26.15352,2553.0,2552.8,0.78337]
[1750410307324,26.15352,2553.0,2552.6,2.61676]
[1750410307522,0.78333,2552.9,2552.8,0.78335]
[1750410307721,25.3702,2553.0,2552.9,0.78333]
[1750410307918,24.093,2553.0,2552.9,0.78333]
[1750410308118,1.4559,2553.1,2552.9,0.78333]
[1750410308322,6.9576,2553.1,2553.0,0.7833]
[1750410308824,0.78332,2553.0,2552.8,3.2078]
[1750410309023,0.78337,2552.8,2552.6,0.7834]
[1750410309324,0.7834,2552.7,2552.6,0.7834]
[1750410309522,0.7834,2552.7,2552.5,3.2078]
[1750410309523,0.78343,2552.6,2552.5,3.99123]
[1750410309827,0.6367,2552.7,2552.6,0.78343]
[1750410311829,6.285,2552.8,2552.7,0.7834]
[1750410312128,30.377,2552.8,2552.7,0.7834]
[1750410315333,30.377,2552.8,2552.6,0.78341]
[1750410315334,0.7834,2552.7,2552.6,0.78341]
[1750410315533,1.3414,2552.7,2552.6,0.78341]
[1750410315724,30.377,2552.8,2552.7,0.7834]
[1750410317424,6.9203,2552.9,2552.8,0.78337]
[1750410317930,31.0113,2552.9,2552.7,0.78337]
[1750410318125,0.78337,2552.8,2552.7,0.78337]
[1750410318326,0.7834,2552.7,2552.6,0.78343]
[1750410318829,0.78343,2552.6,2552.5,3.99123]
[1750410319727,0.78343,2552.6,2552.5,3.2078]
[1750410319930,0.78343,2552.6,2552.5,3.99126]
[1750410320334,2.70582,2552.7,2552.6,0.78343]
[1750410320531,1.9224,2552.7,2552.6,0.78343]
[1750410320930,0.6255,2552.7,2552.6,0.78343]
[1750410321128,0.78338,2552.8,2552.7,0.7834]
[1750410322133,0.78341,2552.7,2552.6,0.7834]
[1750410322333,0.78339,2552.8,2552.7,0.78339]
[1750410322729,31.0113,2552.9,2552.8,0.78337]
[1750410323132,0.78337,2552.8,2552.7,0.78337]
[1750410323331,31.79465,2552.9,2552.8,0.78337]
[1750410323936,10.27712,2553.0,2552.9,0.78333]
[1750410324138,34.36612,2553.0,2552.9,0.78333]
[1750410324436,0.78334,2552.9,2552.8,0.78334]
[1750410324736,11.62692,2553.0,2552.9,0.78333]
[1750410324939,35.71592,2553.0,2552.9,0.78333]
[1750410325236,0.78335,2552.9,2552.8,0.78334]
[1750410326238,1.95834,2552.9,2552.5,3.8414]
[1750410326437,1.9754,2552.8,2552.5,3.2078]
[1750410326640,26.84677,2552.8,2552.7,0.7834]
[1750410326827,26.0634,2552.8,2552.5,3.2078]
[1750410327031,26.0634,2552.8,2552.6,0.78341]
[1750410327032,0.78341,2552.7,2552.6,0.78341]
[1750410327231,2.07121,2552.7,2552.6,0.78341]
[1750410327848,1.2878,2552.7,2552.6,0.78341]
[1750410328348,2.0712,2552.7,2552.6,0.78341]
[1750410328637,2.0712,2552.7,2552.6,0.78343]
[1750410328835,1.2878,2552.7,2552.6,0.78343]
[1750410329241,2.0712,2552.7,2552.6,0.78343]
[1750410330844,0.78346,2552.5,2552.4,3.90929322]
[1750410331040,0.78352,2552.3,2552.2,3.90935322]
[1750410331244,1.3265,2552.4,2552.1,7.11717322]
[1750410331545,0.78353,2552.3,2552.2,0.78354]
[1750410331739,0.78355,2552.2,2552.1,6.33362322]
[1750410331940,2.11005,2552.2,2552.1,3.2078]
[1750410332246,32.48205,2552.2,2552.1,3.2078]
[1750410332542,0.78364,2551.9,2551.8,3.2078]
[1750410333142,24.86864,2551.9,2551.8,3.2078]
[1750410333350,27.9374972,2551.9,2551.8,3.2078]
[1750410333536,0.78375,2551.6,2551.4,6.33362322]
[1750410333741,10.18971,2551.8,2551.4,3.2078]
[1750410333942,0.78376,2551.5,2551.4,3.2078]
[1750410334146,0.78376,2551.5,2551.4,3.9916]
[1750410334347,0.78376,2551.5,2551.4,3.2078]
[1750410335338,24.086,2551.6,2551.4,3.99158]
[1750410335539,1.2822,2551.5,2551.4,3.99158]
[1750410337340,1.2822,2551.5,2551.4,3.2078]
[1750410337549,2.06596,2551.5,2551.4,3.2078]
[1750410338439,1.2822,2551.5,2551.4,3.9916]
[1750410339542,2.06596,2551.5,2551.4,3.9916]
[1750410339746,1.2822,2551.5,2551.4,3.9916]
[1750410339948,2.06596,2551.5,2551.4,0.7838]
[1750410340150,1.2822,2551.5,2551.4,0.7838]
[1750410340655,24.089,2551.7,2551.6,0.78371]
[1750410340956,7.69297,2551.8,2551.7,0.7837]
[1750410341154,31.78197,2551.8,2551.7,0.7837]
[1750410341653,30.9983,2551.8,2551.3,3.8427]
[1750410341953,0.78374,2551.6,2551.5,0.78375]
[1750410342344,6.9093,2551.8,2551.4,1.9595]
[1750410342544,6.9093,2551.8,2551.7,0.7837]
[1750410342545,0.6293,2551.8,2551.7,0.7837]
[1750410342848,6.39083799,2552.4,2551.7,0.7837]
[1750410342849,0.78355,2552.3,2552.2,0.78354]
[1750410343149,0.78356,2552.2,2552.1,0.78356]
[1750410343553,0.78359,2552.1,2552.0,0.78359]
[1750410343951,0.78357,2552.2,2551.8,1.95918]
[1750410344152,0.78357,2552.2,2552.1,0.78358]
[1750410344341,0.78358,2552.1,2552.0,0.78359]
[1750410344956,0.78357,2552.2,2552.1,0.78357]
[1750410345146,24.87257,2552.2,2552.1,0.78357]
[1750410345347,0.78357,2552.2,2552.1,0.78357]
[1750410345655,24.87257,2552.2,2552.1,0.78357]
[1750410345858,26.85237,2552.2,2552.1,0.78357]
[1750410346151,26.0688,2552.2,2551.6,3.2078]
[1750410346457,0.7837,2551.8,2551.7,0.78365]
[1750410346659,35.53692,2551.9,2551.3,5.81143]
[1750410346850,0.78376,2551.6,2551.5,0.78373]
[1750410348756,0.78378,2551.5,2551.4,0.78377]